[Event "*** Titled Tuesday Blitz"]
[Site "Chess.com"]
[Date "2021.03.16"]
[Round "6"]
[White "Nemsko"]
[Black "annacramling"]
[Result "1-0"]
[WhiteElo "2311"]
[BlackElo "1998"]
[TimeControl "180+1"]
[EndTime "11:07:07 PDT"]
[Termination "Nemsko won on time"]

1. e4 {[%clk 0:03:00.9]} 1... c5 {[%clk 0:02:59.4]} 2. Nf3 {[%clk 0:03:00.8]}
2... Nc6 {[%clk 0:02:47]} 3. d4 {[%clk 0:03:01.1]} 3... cxd4 {[%clk 0:02:43.5]}
4. Nxd4 {[%clk 0:03:02]} 4... Nf6 {[%clk 0:02:42.2]} 5. Nc3 {[%clk 0:03:02.3]}
5... e6 {[%clk 0:02:40.3]} 6. a3 {[%clk 0:02:58]} 6... a6 {[%clk 0:02:34.3]} 7.
Be3 {[%clk 0:02:58.4]} 7... Be7 {[%clk 0:02:30.3]} 8. Bd3 {[%clk 0:02:55.7]}
8... O-O {[%clk 0:02:28.5]} 9. O-O {[%clk 0:02:53]} 9... d5 {[%clk 0:02:27.6]}
10. exd5 {[%clk 0:02:50.9]} 10... exd5 {[%clk 0:02:28.5]} 11. h3 {[%clk
0:02:45]} 11... Be6 {[%clk 0:02:23.9]} 12. Qf3 {[%clk 0:02:42]} 12... Ne5 {[%clk
0:02:17.8]} 13. Qg3 {[%clk 0:02:37.2]} 13... Nxd3 {[%clk 0:02:14.9]} 14. cxd3
{[%clk 0:02:38.1]} 14... Bd6 {[%clk 0:02:04.1]} 15. Qf3 {[%clk 0:02:33.4]} 15...
Rc8 {[%clk 0:02:01.8]} 16. Rfe1 {[%clk 0:02:28]} 16... Qd7 {[%clk 0:01:44.4]}
17. Bg5 {[%clk 0:02:22.8]} 17... Be7 {[%clk 0:01:32.4]} 18. Re2 {[%clk
0:02:08.2]} 18... Qd6 {[%clk 0:00:59]} 19. Rae1 {[%clk 0:02:00.2]} 19... h6
{[%clk 0:00:40.4]} 20. Bf4 {[%clk 0:01:55]} 20... Qd7 {[%clk 0:00:39.4]} 21.
Nxe6 {[%clk 0:01:50.7]} 21... fxe6 {[%clk 0:00:40.3]} 22. Rxe6 {[%clk 0:01:51]}
22... Bc5 {[%clk 0:00:36.3]} 23. R6e2 {[%clk 0:01:07.8]} 23... Nh7 {[%clk
0:00:36]} 24. Qg3 {[%clk 0:01:04.1]} 24... Qf7 {[%clk 0:00:30.5]} 25. Bxh6
{[%clk 0:00:50.1]} 25... Rc6 {[%clk 0:00:20.5]} 26. Be3 {[%clk 0:00:40.6]} 26...
d4 {[%clk 0:00:18.5]} 27. Ne4 {[%clk 0:00:20.3]} 27... dxe3 {[%clk 0:00:18.1]}
28. Nxc5 {[%clk 0:00:20.5]} 28... Rxc5 {[%clk 0:00:18.6]} 29. Rxe3 {[%clk
0:00:19.5]} 29... Rg5 {[%clk 0:00:17.2]} 30. Qh4 {[%clk 0:00:17.3]} 30... Rh5
{[%clk 0:00:09.2]} 31. Qg3 {[%clk 0:00:17.4]} 31... Rg5 {[%clk 0:00:07.4]} 32.
Qh4 {[%clk 0:00:13.9]} 32... Qg6 {[%clk 0:00:06.8]} 33. g3 {[%clk 0:00:10.7]}
33... Rh5 {[%clk 0:00:06.6]} 34. Qc4+ {[%clk 0:00:10.8]} 34... Kh8 {[%clk
0:00:03]} 35. Kg2 {[%clk 0:00:10.6]} 35... Rhf5 {[%clk 0:00:02.4]} 36. R1e2
{[%clk 0:00:10.4]} 36... R5f7 {[%clk 0:00:02.3]} 37. Re6 {[%clk 0:00:10.7]}
37... Rf6 {[%clk 0:00:02.1]} 38. Re7 {[%clk 0:00:10.5]} 38... R6f7 {[%clk
0:00:02.2]} 39. R7e3 {[%clk 0:00:06.8]} 39... Nf6 {[%clk 0:00:02.6]} 40. d4
{[%clk 0:00:06.5]} 40... Rg8 {[%clk 0:00:01.1]} 41. d5 {[%clk 0:00:06]} 41...
Rgf8 {[%clk 0:00:01.6]} 42. Rd3 {[%clk 0:00:05.9]} 42... Nd7 {[%clk 0:00:01.9]}
43. Rd4 {[%clk 0:00:05.2]} 43... Qf6 {[%clk 0:00:02.3]} 44. Rh4+ {[%clk
0:00:05.6]} 44... Kg8 {[%clk 0:00:02.8]} 45. Rf4 {[%clk 0:00:06.3]} 45... Qg6
{[%clk 0:00:03]} 46. Rg4 {[%clk 0:00:06.1]} 46... Qh6 {[%clk 0:00:03.3]} 47. Rh4
{[%clk 0:00:05.9]} 47... Qd6 {[%clk 0:00:03.2]} 48. Qd4 {[%clk 0:00:05.5]} 48...
Ne5 {[%clk 0:00:03.3]} 49. Rhe4 {[%clk 0:00:05.6]} 49... Nf3 {[%clk 0:00:03.2]}
50. Qd3 {[%clk 0:00:05]} 50... Ng5 {[%clk 0:00:03.4]} 51. Rh4 {[%clk 0:00:03.9]}
51... Qe6 {[%clk 0:00:01.4]} 52. dxe6 {[%clk 0:00:03.8]} 52... Rxf2+ {[%clk
0:00:01.5]} 53. Rxf2 {[%clk 0:00:04]} 1-0

[Event "*** Titled Tuesday Blitz"]
[Site "Chess.com"]
[Date "2021.03.16"]
[Round "6"]
[White "IngOscarArdila"]
[Black "muchojogo"]
[Result "1-0"]
[WhiteElo "2288"]
[BlackElo "2416"]
[TimeControl "180+1"]
[EndTime "11:07:13 PDT"]
[Termination "IngOscarArdila won by checkmate"]

1. d4 {[%clk 0:02:55.9]} 1... Nf6 {[%clk 0:02:59.7]} 2. c4 {[%clk 0:02:54.9]}
2... c5 {[%clk 0:03:00.6]} 3. d5 {[%clk 0:02:54.5]} 3... b5 {[%clk 0:03:01.2]}
4. cxb5 {[%clk 0:02:53.7]} 4... a6 {[%clk 0:03:01.9]} 5. bxa6 {[%clk 0:02:54.3]}
5... g6 {[%clk 0:03:02.6]} 6. Nc3 {[%clk 0:02:54.3]} 6... Bg7 {[%clk 0:03:03.2]}
7. e4 {[%clk 0:02:54.3]} 7... O-O {[%clk 0:03:03.8]} 8. Nf3 {[%clk 0:02:53.3]}
8... Qa5 {[%clk 0:03:04.3]} 9. Bd2 {[%clk 0:02:53.2]} 9... Bxa6 {[%clk
0:03:03.5]} 10. Be2 {[%clk 0:02:48.3]} 10... Bxe2 {[%clk 0:03:03.4]} 11. Qxe2
{[%clk 0:02:47.9]} 11... Qa6 {[%clk 0:03:04.3]} 12. a4 {[%clk 0:02:40.5]} 12...
e6 {[%clk 0:03:03.7]} 13. Qxa6 {[%clk 0:01:47.7]} 13... Nxa6 {[%clk 0:03:02.5]}
14. Ke2 {[%clk 0:01:38.4]} 14... exd5 {[%clk 0:03:00.9]} 15. exd5 {[%clk
0:01:38.5]} 15... Nb4 {[%clk 0:03:01.1]} 16. Be3 {[%clk 0:01:35.2]} 16... Nfxd5
{[%clk 0:02:53]} 17. Bxc5 {[%clk 0:01:34.4]} 17... Rfe8+ {[%clk 0:02:52.8]} 18.
Kd2 {[%clk 0:01:33.5]} 18... Bh6+ {[%clk 0:02:48.7]} 19. Be3 {[%clk 0:01:33.2]}
19... Nxe3 {[%clk 0:02:45.8]} 20. fxe3 {[%clk 0:01:34.1]} 20... Bxe3+ {[%clk
0:02:45.3]} 21. Kd1 {[%clk 0:01:33.5]} 21... Nd3 {[%clk 0:02:44.4]} 22. Kc2
{[%clk 0:01:31.6]} 22... Nb4+ {[%clk 0:02:42.2]} 23. Kb3 {[%clk 0:01:31.8]}
23... Rab8 {[%clk 0:02:36.9]} 24. Nb5 {[%clk 0:01:31]} 24... Nc6 {[%clk
0:02:36.5]} 25. Rhd1 {[%clk 0:01:21.7]} 25... Rb7 {[%clk 0:02:29.8]} 26. Kc3
{[%clk 0:01:21.5]} 26... Bh6 {[%clk 0:02:07.7]} 27. b4 {[%clk 0:00:50.7]} 27...
Bg7+ {[%clk 0:02:06.8]} 28. Nfd4 {[%clk 0:00:50.9]} 28... Re3+ {[%clk
0:01:57.7]} 29. Kc4 {[%clk 0:00:51.1]} 29... Ne5+ {[%clk 0:01:45]} 30. Kd5
{[%clk 0:00:51.5]} 30... Nd3 {[%clk 0:01:45.3]} 31. Rab1 {[%clk 0:00:38.7]}
31... Nf4+ {[%clk 0:01:34.8]} 32. Kc4 {[%clk 0:00:38.5]} 32... Nxg2 {[%clk
0:01:34.7]} 33. a5 {[%clk 0:00:34.9]} 33... Re4 {[%clk 0:01:34.8]} 34. a6 {[%clk
0:00:33]} 34... Rb8 {[%clk 0:01:31.2]} 35. a7 {[%clk 0:00:31.2]} 35... Ra8
{[%clk 0:01:28.7]} 36. Ra1 {[%clk 0:00:31.2]} 36... Ne3+ {[%clk 0:01:22.4]} 37.
Kd3 {[%clk 0:00:31.4]} 37... Rxd4+ {[%clk 0:01:22.7]} 38. Nxd4 {[%clk
0:00:30.1]} 38... Nxd1 {[%clk 0:01:22.5]} 39. Ra6 {[%clk 0:00:24.4]} 39... Nf2+
{[%clk 0:01:15.8]} 40. Kc4 {[%clk 0:00:24.2]} 40... Ne4 {[%clk 0:01:11]} 41. Nb5
{[%clk 0:00:20.3]} 41... Be5 {[%clk 0:00:51.9]} 42. Kd5 {[%clk 0:00:17.6]} 42...
Nc3+ {[%clk 0:00:51.8]} 43. Nxc3 {[%clk 0:00:16.9]} 43... Bxc3 {[%clk
0:00:52.7]} 44. b5 {[%clk 0:00:17.3]} 44... Bd2 {[%clk 0:00:30.9]} 45. b6 {[%clk
0:00:16.8]} 45... Bf4 {[%clk 0:00:27.4]} 46. b7 {[%clk 0:00:12.4]} 46... Rxa7
{[%clk 0:00:27.7]} 47. Rxa7 {[%clk 0:00:10.4]} 47... Bxh2 {[%clk 0:00:28.6]} 48.
Ra8+ {[%clk 0:00:09.8]} 48... Kg7 {[%clk 0:00:29.2]} 49. Rd8 {[%clk 0:00:09.4]}
49... Bb8 {[%clk 0:00:30.1]} 50. Rxd7 {[%clk 0:00:09.4]} 50... h5 {[%clk
0:00:31]} 51. Rd8 {[%clk 0:00:09.5]} 51... Bc7 {[%clk 0:00:30.8]} 52. Rc8 {[%clk
0:00:09.3]} 52... Bf4 {[%clk 0:00:30.4]} 53. Kc6 {[%clk 0:00:08.3]} 53... h4
{[%clk 0:00:29.9]} 54. Rc7 {[%clk 0:00:08.5]} 54... h3 {[%clk 0:00:29.8]} 55.
b8=Q {[%clk 0:00:08.8]} 55... h2 {[%clk 0:00:30.2]} 56. Qb1 {[%clk 0:00:07.1]}
56... Be3 {[%clk 0:00:30.3]} 57. Qh1 {[%clk 0:00:05.7]} 57... Bg1 {[%clk
0:00:30.4]} 58. Qf3 {[%clk 0:00:05.4]} 58... Kh6 {[%clk 0:00:30.3]} 59. Rxf7
{[%clk 0:00:05.2]} 59... g5 {[%clk 0:00:30.6]} 60. Qh3+ {[%clk 0:00:05]} 60...
Kg6 {[%clk 0:00:30]} 61. Qf5+ {[%clk 0:00:05.6]} 61... Kh6 {[%clk 0:00:29.7]}
62. Rh7# {[%clk 0:00:05.8]} 1-0

[Event "*** Titled Tuesday Blitz"]
[Site "Chess.com"]
[Date "2021.03.16"]
[Round "6"]
[White "Sergey85Rodchenkov"]
[Black "dosto07"]
[Result "1-0"]
[WhiteElo "2534"]
[BlackElo "2360"]
[TimeControl "180+1"]
[EndTime "11:07:18 PDT"]
[Termination "Sergey85Rodchenkov won on time"]

1. e4 {[%clk 0:03:00.9]} 1... e5 {[%clk 0:02:37.6]} 2. Nf3 {[%clk 0:03:00.3]}
2... Nc6 {[%clk 0:02:37.6]} 3. Bc4 {[%clk 0:02:59.6]} 3... Bc5 {[%clk
0:02:35.8]} 4. d3 {[%clk 0:02:59.8]} 4... d6 {[%clk 0:02:36]} 5. c3 {[%clk
0:02:59.6]} 5... Nf6 {[%clk 0:02:36.2]} 6. O-O {[%clk 0:02:59.6]} 6... a6 {[%clk
0:02:36.6]} 7. Re1 {[%clk 0:02:59.1]} 7... Ba7 {[%clk 0:02:37.1]} 8. Bb3 {[%clk
0:02:58.9]} 8... O-O {[%clk 0:02:37.5]} 9. Bg5 {[%clk 0:02:58.8]} 9... Ne7
{[%clk 0:02:27.5]} 10. Bxf6 {[%clk 0:02:52.6]} 10... gxf6 {[%clk 0:02:26.6]} 11.
Nbd2 {[%clk 0:02:51.5]} 11... Ng6 {[%clk 0:02:26.7]} 12. Nc4 {[%clk 0:02:50.6]}
12... Kh8 {[%clk 0:02:19.8]} 13. Ne3 {[%clk 0:02:50.6]} 13... Nf4 {[%clk
0:02:14.5]} 14. g3 {[%clk 0:02:50]} 14... Nh3+ {[%clk 0:02:13.3]} 15. Kg2 {[%clk
0:02:50]} 15... Rg8 {[%clk 0:02:08.1]} 16. Nh4 {[%clk 0:02:42.2]} 16... f5
{[%clk 0:01:41.3]} 17. Nhxf5 {[%clk 0:02:39.8]} 17... Bxf5 {[%clk 0:01:38.2]}
18. Nxf5 {[%clk 0:02:23]} 18... Nxf2 {[%clk 0:01:28.2]} 19. Qf3 {[%clk
0:02:20.3]} 19... Qg5 {[%clk 0:01:15.4]} 20. Re2 {[%clk 0:01:56.7]} 20... Ng4
{[%clk 0:01:14.1]} 21. Bxf7 {[%clk 0:01:46.5]} 21... Rgf8 {[%clk 0:01:13.6]} 22.
Bb3 {[%clk 0:01:44.7]} 22... Nh6 {[%clk 0:01:06.5]} 23. Rf1 {[%clk 0:01:38.2]}
23... Rf6 {[%clk 0:00:52.5]} 24. h3 {[%clk 0:01:32.2]} 24... Raf8 {[%clk
0:00:51.4]} 25. g4 {[%clk 0:01:32.6]} 25... Nxf5 {[%clk 0:00:44.7]} 26. exf5
{[%clk 0:01:30.8]} 26... h5 {[%clk 0:00:36.6]} 27. Qg3 {[%clk 0:01:06.7]} 27...
h4 {[%clk 0:00:33.3]} 28. Qf3 {[%clk 0:01:02]} 28... c6 {[%clk 0:00:33.3]} 29.
Kh1 {[%clk 0:00:34.2]} 29... Bb8 {[%clk 0:00:30.9]} 30. d4 {[%clk 0:00:30.8]}
30... exd4 {[%clk 0:00:19.9]} 31. cxd4 {[%clk 0:00:30.3]} 31... d5 {[%clk
0:00:20]} 32. Qf2 {[%clk 0:00:28.2]} 32... Bg3 {[%clk 0:00:16.6]} 33. Qe3 {[%clk
0:00:28]} 33... Qxe3 {[%clk 0:00:12.3]} 34. Rxe3 {[%clk 0:00:28.2]} 34... R8f7
{[%clk 0:00:10.9]} 35. Kg2 {[%clk 0:00:27.3]} 35... Kg7 {[%clk 0:00:10.9]} 36.
Kf3 {[%clk 0:00:26.6]} 36... Kh6 {[%clk 0:00:11]} 37. Ke2 {[%clk 0:00:24.2]}
37... Kg5 {[%clk 0:00:11.2]} 38. Bc2 {[%clk 0:00:23.2]} 38... Rd6 {[%clk
0:00:10]} 39. Re8 {[%clk 0:00:21.2]} 39... Rdd7 {[%clk 0:00:09.6]} 40. Kd3
{[%clk 0:00:19.7]} 40... Rde7 {[%clk 0:00:08.4]} 41. Rxe7 {[%clk 0:00:19.1]}
41... Rxe7 {[%clk 0:00:08]} 42. Bd1 {[%clk 0:00:19.7]} 42... Bf4 {[%clk
0:00:06]} 43. Rf3 {[%clk 0:00:19.6]} 43... Bg3 {[%clk 0:00:04.9]} 44. f6 {[%clk
0:00:19.1]} 44... Rf7 {[%clk 0:00:03.6]} 45. Ke2 {[%clk 0:00:19.3]} 45... Rxf6
{[%clk 0:00:03]} 46. Rxf6 {[%clk 0:00:18.2]} 46... Kxf6 {[%clk 0:00:03.4]} 47.
Bc2 {[%clk 0:00:18]} 47... Kg5 {[%clk 0:00:04.1]} 48. Bf5 {[%clk 0:00:18]} 48...
Bf4 {[%clk 0:00:04.8]} 49. Bc8 {[%clk 0:00:17.9]} 49... b6 {[%clk 0:00:05.2]}
50. Bb7 {[%clk 0:00:17.8]} 50... Bc1 {[%clk 0:00:04.5]} 51. b3 {[%clk
0:00:17.5]} 51... Bb2 {[%clk 0:00:04.6]} 52. Bxc6 {[%clk 0:00:17.4]} 52... Bxd4
{[%clk 0:00:03.7]} 53. Bxd5 {[%clk 0:00:17.7]} 53... a5 {[%clk 0:00:04]} 54. Kf3
{[%clk 0:00:17.5]} 54... Bc5 {[%clk 0:00:04.9]} 55. Ke4 {[%clk 0:00:17.7]} 55...
Bf2 {[%clk 0:00:04.8]} 56. Bc4 {[%clk 0:00:17.7]} 56... Bg3 {[%clk 0:00:05.2]}
57. Bf1 {[%clk 0:00:17.8]} 57... Bf2 {[%clk 0:00:05.3]} 58. Kd5 {[%clk
0:00:17.6]} 58... Bg1 {[%clk 0:00:06.2]} 59. Ke4 {[%clk 0:00:17.8]} 59... Bf2
{[%clk 0:00:07.1]} 60. a4 {[%clk 0:00:17.6]} 60... Bg1 {[%clk 0:00:08]} 61. Kf3
{[%clk 0:00:17.6]} 61... Bf2 {[%clk 0:00:08.9]} 62. Kxf2 {[%clk 0:00:17.5]} 1-0

[Event "*** Titled Tuesday Blitz"]
[Site "Chess.com"]
[Date "2021.03.16"]
[Round "6"]
[White "Mrlammy"]
[Black "MustafayevFarid2004"]
[Result "0-1"]
[WhiteElo "2319"]
[BlackElo "2470"]
[TimeControl "180+1"]
[EndTime "11:07:19 PDT"]
[Termination "MustafayevFarid2004 won by checkmate"]

1. e4 {[%clk 0:03:00.9]} 1... c6 {[%clk 0:02:58.4]} 2. d4 {[%clk 0:03:00.5]}
2... d5 {[%clk 0:02:57.6]} 3. e5 {[%clk 0:03:00.9]} 3... Bf5 {[%clk 0:02:56.9]}
4. Nd2 {[%clk 0:03:00.1]} 4... e6 {[%clk 0:02:56]} 5. Nb3 {[%clk 0:03:00.1]}
5... Nd7 {[%clk 0:02:55.4]} 6. Nf3 {[%clk 0:03:00.3]} 6... Ne7 {[%clk
0:02:55.2]} 7. Be2 {[%clk 0:03:00.3]} 7... h6 {[%clk 0:02:54.5]} 8. O-O {[%clk
0:03:00.4]} 8... g5 {[%clk 0:02:54.2]} 9. c4 {[%clk 0:02:58.9]} 9... dxc4 {[%clk
0:02:53.9]} 10. Bxc4 {[%clk 0:02:59.8]} 10... Nb6 {[%clk 0:02:50.6]} 11. Bd3
{[%clk 0:02:58.3]} 11... Qd5 {[%clk 0:02:45.3]} 12. Bxf5 {[%clk 0:02:49.4]}
12... Nxf5 {[%clk 0:02:46.2]} 13. Qe2 {[%clk 0:02:41]} 13... O-O-O {[%clk
0:02:41.1]} 14. h3 {[%clk 0:02:38.5]} 14... Be7 {[%clk 0:02:35]} 15. Be3 {[%clk
0:02:34.4]} 15... Rhg8 {[%clk 0:02:27.9]} 16. Nfd2 {[%clk 0:02:29.6]} 16... h5
{[%clk 0:01:58.6]} 17. Qxh5 {[%clk 0:02:16]} 17... g4 {[%clk 0:01:55.6]} 18.
hxg4 {[%clk 0:02:08.5]} 18... Rh8 {[%clk 0:01:28.4]} 19. Qxf7 {[%clk 0:01:46.4]}
19... Rdf8 {[%clk 0:01:24.8]} 20. Qg6 {[%clk 0:01:43.8]} 20... Rfg8 {[%clk
0:01:10.8]} 21. gxf5 {[%clk 0:01:07.6]} 21... Rxg6 {[%clk 0:01:09.4]} 22. fxg6
{[%clk 0:01:08.5]} 22... Rg8 {[%clk 0:01:07.4]} 23. f3 {[%clk 0:01:02.5]} 23...
Rxg6 {[%clk 0:01:04.3]} 24. Ne4 {[%clk 0:01:00.2]} 24... Nc4 {[%clk 0:01:04]}
25. Bf4 {[%clk 0:00:50.6]} 25... a5 {[%clk 0:00:56.6]} 26. Rac1 {[%clk
0:00:43.4]} 26... Nxb2 {[%clk 0:00:43.1]} 27. Nc3 {[%clk 0:00:36.4]} 27... Qd8
{[%clk 0:00:39.4]} 28. Rb1 {[%clk 0:00:28]} 28... Nd3 {[%clk 0:00:39]} 29. Be3
{[%clk 0:00:19.9]} 29... Qg8 {[%clk 0:00:37.3]} 30. g4 {[%clk 0:00:18.3]} 30...
Bh4 {[%clk 0:00:29.9]} 31. Nxa5 {[%clk 0:00:15.2]} 31... Rxg4+ {[%clk
0:00:26.4]} 32. fxg4 {[%clk 0:00:15.5]} 32... Qxg4+ {[%clk 0:00:27.3]} 33. Kh1
{[%clk 0:00:13.5]} 33... Qh3+ {[%clk 0:00:27.3]} 34. Kg1 {[%clk 0:00:13.9]}
34... Qxe3+ {[%clk 0:00:28.2]} 35. Kh2 {[%clk 0:00:14.2]} 35... Qg3+ {[%clk
0:00:27.5]} 36. Kh1 {[%clk 0:00:14.6]} 36... Nf2+ {[%clk 0:00:27.5]} 37. Rxf2
{[%clk 0:00:14.9]} 37... Qxf2 {[%clk 0:00:28.4]} 38. Nd1 {[%clk 0:00:10.4]}
38... Qf3+ {[%clk 0:00:25.6]} 39. Kg1 {[%clk 0:00:10.3]} 39... Qg4+ {[%clk
0:00:24.1]} 40. Kh1 {[%clk 0:00:08.4]} 40... Qe4+ {[%clk 0:00:23.9]} 41. Kh2
{[%clk 0:00:07.9]} 41... Qxb1 {[%clk 0:00:24.8]} 42. Ne3 {[%clk 0:00:07.9]}
42... Qxa2+ {[%clk 0:00:24.6]} 43. Kh3 {[%clk 0:00:07]} 43... Qxa5 {[%clk
0:00:24.7]} 44. Kxh4 {[%clk 0:00:07.5]} 44... Qc3 {[%clk 0:00:25.3]} 45. Ng4
{[%clk 0:00:06.3]} 45... Qxd4 {[%clk 0:00:25.6]} 46. Kg5 {[%clk 0:00:07.2]}
46... Qxg4+ {[%clk 0:00:25.9]} 47. Kxg4 {[%clk 0:00:08.1]} 47... Kd7 {[%clk
0:00:26.1]} 48. Kf4 {[%clk 0:00:09]} 48... b6 {[%clk 0:00:26.7]} 49. Ke4 {[%clk
0:00:09.9]} 49... b5 {[%clk 0:00:27.3]} 50. Kd4 {[%clk 0:00:10.8]} 50... Kc7
{[%clk 0:00:27.7]} 51. Kc5 {[%clk 0:00:11.7]} 51... Kd7 {[%clk 0:00:27.1]} 52.
Kb6 {[%clk 0:00:11.2]} 52... b4 {[%clk 0:00:26.5]} 53. Kc5 {[%clk 0:00:11.6]}
53... b3 {[%clk 0:00:27.4]} 54. Kc4 {[%clk 0:00:12.5]} 54... b2 {[%clk
0:00:28.1]} 55. Kc3 {[%clk 0:00:13.4]} 55... b1=Q {[%clk 0:00:28.6]} 56. Kd4
{[%clk 0:00:14.2]} 56... Qb5 {[%clk 0:00:28.6]} 57. Ke3 {[%clk 0:00:14.2]} 57...
Qd5 {[%clk 0:00:28.6]} 58. Kf4 {[%clk 0:00:14.4]} 58... c5 {[%clk 0:00:29.5]}
59. Kg5 {[%clk 0:00:14.8]} 59... Qxe5+ {[%clk 0:00:30.4]} 60. Kg6 {[%clk
0:00:15.1]} 60... c4 {[%clk 0:00:30.9]} 61. Kf7 {[%clk 0:00:16]} 61... c3 {[%clk
0:00:31.4]} 62. Kf8 {[%clk 0:00:16.9]} 62... Qf6+ {[%clk 0:00:28.8]} 63. Kg8
{[%clk 0:00:17.8]} 63... Qe7 {[%clk 0:00:28.3]} 64. Kh8 {[%clk 0:00:13.9]} 64...
c2 {[%clk 0:00:28.7]} 65. Kg8 {[%clk 0:00:14.5]} 65... c1=Q {[%clk 0:00:28.6]}
66. Kh8 {[%clk 0:00:15.1]} 66... Qc8# {[%clk 0:00:28.8]} 0-1

[Event "*** Titled Tuesday Blitz"]
[Site "Chess.com"]
[Date "2021.03.16"]
[Round "6"]
[White "kunaevchess"]
[Black "IMAghasiyevKamal"]
[Result "0-1"]
[WhiteElo "2349"]
[BlackElo "2507"]
[TimeControl "180+1"]
[EndTime "11:07:22 PDT"]
[Termination "IMAghasiyevKamal won by resignation"]

1. e4 {[%clk 0:03:00.9]} 1... e5 {[%clk 0:02:58]} 2. Nf3 {[%clk 0:03:00.9]} 2...
Nc6 {[%clk 0:02:56.3]} 3. Bb5 {[%clk 0:03:00.9]} 3... a6 {[%clk 0:02:55.8]} 4.
Ba4 {[%clk 0:03:01.2]} 4... d6 {[%clk 0:02:55.4]} 5. O-O {[%clk 0:02:58.7]} 5...
Bd7 {[%clk 0:02:55]} 6. d4 {[%clk 0:02:58.6]} 6... g6 {[%clk 0:02:37.8]} 7. d5
{[%clk 0:02:46.5]} 7... Nce7 {[%clk 0:02:35.7]} 8. c4 {[%clk 0:02:46.7]} 8... b5
{[%clk 0:02:31.7]} 9. Bb3 {[%clk 0:02:31.1]} 9... Bg7 {[%clk 0:02:30.3]} 10. Be3
{[%clk 0:02:25.4]} 10... Nf6 {[%clk 0:02:27]} 11. Nfd2 {[%clk 0:02:08]} 11...
bxc4 {[%clk 0:02:18.5]} 12. Bxc4 {[%clk 0:02:07.9]} 12... Ng4 {[%clk 0:02:17.6]}
13. Bg5 {[%clk 0:02:07.3]} 13... f6 {[%clk 0:02:16.1]} 14. Bh4 {[%clk 0:02:07]}
14... g5 {[%clk 0:02:16.5]} 15. Bg3 {[%clk 0:02:05.8]} 15... h5 {[%clk
0:02:16.6]} 16. h4 {[%clk 0:01:58.5]} 16... Ng6 {[%clk 0:02:12.7]} 17. Nf3
{[%clk 0:01:47.7]} 17... Nf4 {[%clk 0:01:45.4]} 18. Nbd2 {[%clk 0:01:38.5]}
18... Bh6 {[%clk 0:01:39]} 19. Rc1 {[%clk 0:01:23.6]} 19... Rg8 {[%clk
0:01:33.9]} 20. Bb3 {[%clk 0:01:08.3]} 20... gxh4 {[%clk 0:01:15.7]} 21. Nxh4
{[%clk 0:01:08.1]} 21... Rc8 {[%clk 0:01:06.4]} 22. Ba4 {[%clk 0:01:06.6]} 22...
Bg5 {[%clk 0:00:57.4]} 23. Ndf3 {[%clk 0:00:56.5]} 23... Kf7 {[%clk 0:00:54]}
24. Bxd7 {[%clk 0:00:51.6]} 24... Qxd7 {[%clk 0:00:54.2]} 25. Nf5 {[%clk
0:00:52.1]} 25... Ng6 {[%clk 0:00:51.9]} 26. Nh2 {[%clk 0:00:46.3]} 26... Bxc1
{[%clk 0:00:47.3]} 27. Qxc1 {[%clk 0:00:35.9]} 27... Rh8 {[%clk 0:00:45.1]} 28.
f3 {[%clk 0:00:27.3]} 28... Nxh2 {[%clk 0:00:43.7]} 29. Bxh2 {[%clk 0:00:27.9]}
29... h4 {[%clk 0:00:40.6]} 30. Qc4 {[%clk 0:00:28.1]} 30... Ne7 {[%clk
0:00:34]} 31. Ne3 {[%clk 0:00:23.3]} 31... Qb5 {[%clk 0:00:29.7]} 32. Rc1 {[%clk
0:00:22.6]} 32... Qxc4 {[%clk 0:00:29.4]} 33. Rxc4 {[%clk 0:00:23.2]} 33... c6
{[%clk 0:00:28.5]} 34. Ra4 {[%clk 0:00:19.9]} 34... cxd5 {[%clk 0:00:28.2]} 35.
exd5 {[%clk 0:00:20.4]} 35... Rc1+ {[%clk 0:00:28]} 36. Kf2 {[%clk 0:00:20.6]}
36... f5 {[%clk 0:00:23.2]} 37. Rxa6 {[%clk 0:00:19]} 37... f4 {[%clk
0:00:22.9]} 38. Ng4 {[%clk 0:00:17.7]} 38... Rhc8 {[%clk 0:00:22.8]} 39. Ke2
{[%clk 0:00:15.4]} 39... R8c2+ {[%clk 0:00:22.7]} 40. Kd3 {[%clk 0:00:15.7]}
40... Nxd5 {[%clk 0:00:20.2]} 41. Rxd6 {[%clk 0:00:15.3]} 41... Nb4+ {[%clk
0:00:15.4]} 42. Ke4 {[%clk 0:00:14.9]} 42... Rxg2 {[%clk 0:00:15]} 43. Nxe5+
{[%clk 0:00:14.6]} 43... Ke8 {[%clk 0:00:12.9]} 44. Bxf4 {[%clk 0:00:14.1]}
44... h3 {[%clk 0:00:12.4]} 45. Re6+ {[%clk 0:00:12.9]} 45... Kd8 {[%clk
0:00:10.4]} 46. Nf7+ {[%clk 0:00:12.6]} 46... Kc8 {[%clk 0:00:09.9]} 47. Nd6+
{[%clk 0:00:11.9]} 47... Kd7 {[%clk 0:00:09.8]} 48. Rh6 {[%clk 0:00:10.4]} 48...
Re1+ {[%clk 0:00:09.5]} 49. Kf5 {[%clk 0:00:10.9]} 49... Nd5 {[%clk 0:00:09]}
50. Be5 {[%clk 0:00:11.1]} 50... Ne3+ {[%clk 0:00:06.2]} 51. Kf4 {[%clk
0:00:08.8]} 51... Nd5+ {[%clk 0:00:05.9]} 52. Kf5 {[%clk 0:00:09.2]} 52... Ne3+
{[%clk 0:00:06.2]} 53. Kf4 {[%clk 0:00:09.4]} 53... h2 {[%clk 0:00:06.7]} 54.
Rh7+ {[%clk 0:00:08.4]} 54... Kc6 {[%clk 0:00:06.8]} 55. Ne4 {[%clk 0:00:07.1]}
55... h1=Q {[%clk 0:00:06.4]} 56. Rc7+ {[%clk 0:00:07.1]} 56... Kb6 {[%clk
0:00:05.2]} 0-1